[Event "*** Titled Tuesday Blitz"]
[Site "Chess.com"]
[Date "2020.03.03"]
[Round "2"]
[White "mortngabriel"]
[Black "freshfoodcompany"]
[Result "1/2-1/2"]
[WhiteElo "2407"]
[BlackElo "2159"]
[TimeControl "180+1"]
[EndTime "9:18:54 PST"]
[Termination "Game drawn by repetition"]

1. e4 {[%clk 0:03:00.9]} 1... c5 {[%clk 0:02:59]} 2. Nf3 {[%clk 0:03:00.5]} 2...
Nc6 {[%clk 0:02:59.2]} 3. g3 {[%clk 0:03:00]} 3... Qc7 {[%clk 0:02:57.3]} 4. Bg2
{[%clk 0:02:59.4]} 4... g6 {[%clk 0:02:57.3]} 5. O-O {[%clk 0:02:59]} 5... Bg7
{[%clk 0:02:57.7]} 6. c3 {[%clk 0:02:58.9]} 6... e5 {[%clk 0:02:56.4]} 7. Na3
{[%clk 0:02:53.1]} 7... a6 {[%clk 0:02:52.8]} 8. Nc4 {[%clk 0:02:40.5]} 8...
Nge7 {[%clk 0:02:50.8]} 9. a4 {[%clk 0:02:39.4]} 9... d6 {[%clk 0:02:46.2]} 10.
a5 {[%clk 0:02:37]} 10... Bg4 {[%clk 0:02:36.3]} 11. h3 {[%clk 0:02:34.6]} 11...
Bxf3 {[%clk 0:02:35.5]} 12. Qxf3 {[%clk 0:02:31.3]} 12... Rd8 {[%clk 0:02:30.9]}
13. d3 {[%clk 0:02:24.5]} 13... O-O {[%clk 0:02:25.2]} 14. Qe2 {[%clk
0:02:21.8]} 14... Rfe8 {[%clk 0:02:18.5]} 15. Bd2 {[%clk 0:02:11]} 15... Nc8
{[%clk 0:02:08.9]} 16. Be3 {[%clk 0:01:58.3]} 16... N6e7 {[%clk 0:02:01.2]} 17.
b4 {[%clk 0:01:52.4]} 17... Kh8 {[%clk 0:01:45.3]} 18. bxc5 {[%clk 0:01:27.7]}
18... dxc5 {[%clk 0:01:44.2]} 19. Rfd1 {[%clk 0:01:24.6]} 19... Nd6 {[%clk
0:01:33.1]} 20. Nb6 {[%clk 0:01:22.7]} 20... Nb5 {[%clk 0:01:28.3]} 21. Qc2
{[%clk 0:01:01.9]} 21... f5 {[%clk 0:01:12.4]} 22. Na4 {[%clk 0:00:50.7]} 22...
Qxa5 {[%clk 0:00:48.9]} 23. Bxc5 {[%clk 0:00:50.2]} 23... Nc8 {[%clk 0:00:37.1]}
24. exf5 {[%clk 0:00:37.9]} 24... gxf5 {[%clk 0:00:32.9]} 25. Bxb7 {[%clk
0:00:37.7]} 25... e4 {[%clk 0:00:20.4]} 26. Bxc8 {[%clk 0:00:34.8]} 26... Rxc8
{[%clk 0:00:19.5]} 27. Bb6 {[%clk 0:00:34.1]} 27... Nd4 {[%clk 0:00:13.5]} 28.
cxd4 {[%clk 0:00:29]} 28... Rxc2 {[%clk 0:00:09.7]} 29. Bxa5 {[%clk 0:00:28.9]}
29... Bxd4 {[%clk 0:00:09.9]} 30. Ra3 {[%clk 0:00:10.7]} 30... Rxf2 {[%clk
0:00:08.2]} 31. Kh1 {[%clk 0:00:09.9]} 31... e3 {[%clk 0:00:07]} 32. Bc3 {[%clk
0:00:09.3]} 32... Bxc3 {[%clk 0:00:05.8]} 33. Nxc3 {[%clk 0:00:09.3]} 33... e2
{[%clk 0:00:06]} 34. Nxe2 {[%clk 0:00:04.1]} 34... Rexe2 {[%clk 0:00:06.1]} 35.
d4 {[%clk 0:00:03.8]} 35... Rh2+ {[%clk 0:00:05.9]} 36. Kg1 {[%clk 0:00:03.9]}
36... Reg2+ {[%clk 0:00:05.2]} 37. Kf1 {[%clk 0:00:04.2]} 37... Rf2+ {[%clk
0:00:05.6]} 38. Kg1 {[%clk 0:00:04.4]} 38... Rfg2+ {[%clk 0:00:04.9]} 39. Kf1
{[%clk 0:00:04.7]} 39... Rf2+ {[%clk 0:00:05.4]} 40. Kg1 {[%clk 0:00:05.1]}
40... Rfg2+ {[%clk 0:00:05.6]} 1/2-1/2

[Event "*** Titled Tuesday Blitz"]
[Site "Chess.com"]
[Date "2020.03.03"]
[Round "2"]
[White "GM-2023"]
[Black "JakeCarlosBanawa"]
[Result "0-1"]
[WhiteElo "2043"]
[BlackElo "2442"]
[TimeControl "180+1"]
[EndTime "9:18:57 PST"]
[Termination "JakeCarlosBanawa won on time"]

1. e4 {[%clk 0:02:59.9]} 1... c5 {[%clk 0:02:59]} 2. Nf3 {[%clk 0:02:59.6]} 2...
d6 {[%clk 0:02:58.3]} 3. d4 {[%clk 0:02:59.8]} 3... cxd4 {[%clk 0:02:59.2]} 4.
Nxd4 {[%clk 0:03:00.1]} 4... Nf6 {[%clk 0:02:59.4]} 5. Nc3 {[%clk 0:03:00.3]}
5... a6 {[%clk 0:02:59.2]} 6. Bg5 {[%clk 0:03:00.1]} 6... e6 {[%clk 0:02:56.2]}
7. Qe2 {[%clk 0:02:59.5]} 7... Nc6 {[%clk 0:02:43.3]} 8. O-O-O {[%clk
0:02:47.6]} 8... Qc7 {[%clk 0:02:14.9]} 9. f4 {[%clk 0:02:35.8]} 9... Be7 {[%clk
0:02:09.2]} 10. Kb1 {[%clk 0:02:29.5]} 10... O-O {[%clk 0:01:57]} 11. g4 {[%clk
0:01:35.2]} 11... Bd7 {[%clk 0:01:50.4]} 12. h4 {[%clk 0:01:16]} 12... Rac8
{[%clk 0:01:42.6]} 13. Nb3 {[%clk 0:01:11.3]} 13... Rfe8 {[%clk 0:01:17.6]} 14.
Bg2 {[%clk 0:01:09]} 14... b5 {[%clk 0:01:06.8]} 15. h5 {[%clk 0:00:59.6]} 15...
b4 {[%clk 0:00:50.2]} 16. Na4 {[%clk 0:00:32.7]} 16... Na5 {[%clk 0:00:49.1]}
17. Bxf6 {[%clk 0:00:31.6]} 17... gxf6 {[%clk 0:00:29.4]} 18. g5 {[%clk
0:00:31.1]} 18... Bxa4 {[%clk 0:00:26.9]} 19. g6 {[%clk 0:00:23.6]} 19... Nc4
{[%clk 0:00:16]} 20. gxf7+ {[%clk 0:00:13]} 20... Kxf7 {[%clk 0:00:15.8]} 21.
Bh3 {[%clk 0:00:13.9]} 21... Rg8 {[%clk 0:00:15.1]} 22. Nd4 {[%clk 0:00:07.9]}
22... Bd7 {[%clk 0:00:14.5]} 23. f5 {[%clk 0:00:03.8]} 23... e5 {[%clk
0:00:13.9]} 24. Ne6 {[%clk 0:00:04.1]} 24... Bxe6 {[%clk 0:00:13.4]} 25. fxe6+
{[%clk 0:00:05]} 25... Ke8 {[%clk 0:00:12.4]} 26. Rhg1 {[%clk 0:00:05.3]} 26...
Rg5 {[%clk 0:00:12.4]} 27. Rxg5 {[%clk 0:00:03.8]} 27... fxg5 {[%clk 0:00:13.3]}
28. Rf1 {[%clk 0:00:04]} 28... Qb6 {[%clk 0:00:09.8]} 29. h6 {[%clk 0:00:03.9]}
29... Kd8 {[%clk 0:00:09.2]} 30. Rd1 {[%clk 0:00:02.3]} 30... Na3+ {[%clk
0:00:08.4]} 31. Ka1 {[%clk 0:00:00.9]} 31... Nxc2+ {[%clk 0:00:07.6]} 32. Kb1
{[%clk 0:00:01.1]} 32... Nd4 {[%clk 0:00:07.7]} 0-1

[Event "*** Titled Tuesday Blitz"]
[Site "Chess.com"]
[Date "2020.03.03"]
[Round "2"]
[White "iturrizaga"]
[Black "Atakishiyev04"]
[Result "0-1"]
[WhiteElo "2961"]
[BlackElo "2674"]
[TimeControl "180+1"]
[EndTime "9:18:58 PST"]
[Termination "Atakishiyev04 won on time"]

1. c4 {[%clk 0:03:00.9]} 1... Nf6 {[%clk 0:02:59.8]} 2. g3 {[%clk 0:03:01.2]}
2... g6 {[%clk 0:02:58.9]} 3. Bg2 {[%clk 0:03:01.6]} 3... d5 {[%clk 0:02:58.7]}
4. cxd5 {[%clk 0:02:59]} 4... Nxd5 {[%clk 0:02:59.6]} 5. Nc3 {[%clk 0:02:57.9]}
5... Nxc3 {[%clk 0:02:59.3]} 6. bxc3 {[%clk 0:02:58.1]} 6... Bg7 {[%clk
0:02:58.9]} 7. h4 {[%clk 0:02:56.7]} 7... h6 {[%clk 0:02:56.7]} 8. d4 {[%clk
0:02:56.9]} 8... c5 {[%clk 0:02:54.8]} 9. e3 {[%clk 0:02:53.5]} 9... Nc6 {[%clk
0:02:52.5]} 10. Ne2 {[%clk 0:02:49.7]} 10... O-O {[%clk 0:02:52]} 11. h5 {[%clk
0:02:49.5]} 11... g5 {[%clk 0:02:50]} 12. f4 {[%clk 0:02:49.7]} 12... Bg4 {[%clk
0:02:28.3]} 13. fxg5 {[%clk 0:02:18.4]} 13... Qd6 {[%clk 0:02:26.8]} 14. gxh6
{[%clk 0:02:13.8]} 14... Bxh6 {[%clk 0:02:23.5]} 15. Qd3 {[%clk 0:02:04.4]}
15... e5 {[%clk 0:02:14.1]} 16. d5 {[%clk 0:01:56.5]} 16... f5 {[%clk
0:01:53.4]} 17. e4 {[%clk 0:01:35.5]} 17... Rad8 {[%clk 0:01:23.2]} 18. O-O
{[%clk 0:01:19]} 18... f4 {[%clk 0:01:18.6]} 19. Bf3 {[%clk 0:01:13.4]} 19...
Bc8 {[%clk 0:01:15.7]} 20. g4 {[%clk 0:01:03]} 20... Kh8 {[%clk 0:01:12.1]} 21.
Rf2 {[%clk 0:00:49.4]} 21... Rg8 {[%clk 0:01:10.6]} 22. Rg2 {[%clk 0:00:49]}
22... Rg7 {[%clk 0:01:07.4]} 23. Ba3 {[%clk 0:00:24]} 23... Ne7 {[%clk
0:01:03.2]} 24. Kf2 {[%clk 0:00:15.2]} 24... b6 {[%clk 0:01:01.3]} 25. Rag1
{[%clk 0:00:14.6]} 25... Rdg8 {[%clk 0:00:56.1]} 26. c4 {[%clk 0:00:14.9]} 26...
Bg5 {[%clk 0:00:49.5]} 27. Bb2 {[%clk 0:00:14]} 27... Kh7 {[%clk 0:00:46.1]} 28.
Kf1 {[%clk 0:00:12.4]} 28... Nc6 {[%clk 0:00:39.3]} 29. Qc3 {[%clk 0:00:09]}
29... Nd4 {[%clk 0:00:38.2]} 30. Nxd4 {[%clk 0:00:09.5]} 30... cxd4 {[%clk
0:00:38.8]} 31. Qd3 {[%clk 0:00:10]} 31... Ba6 {[%clk 0:00:37.7]} 32. Bxd4
{[%clk 0:00:08.9]} 32... Rc8 {[%clk 0:00:30.1]} 33. Rc2 {[%clk 0:00:06.8]} 33...
Rgc7 {[%clk 0:00:28.1]} 34. Kg2 {[%clk 0:00:02.1]} 34... Rxc4 {[%clk 0:00:26.7]}
35. Rxc4 {[%clk 0:00:01.6]} 35... Bxc4 {[%clk 0:00:27]} 36. Qb1 {[%clk
0:00:01.9]} 36... Ba6 {[%clk 0:00:19.6]} 37. Bf2 {[%clk 0:00:01.1]} 37... Rc3
{[%clk 0:00:17.7]} 38. Rc1 {[%clk 0:00:01.3]} 38... Rxf3 {[%clk 0:00:15.9]} 0-1

[Event "*** Titled Tuesday Blitz"]
[Site "Chess.com"]
[Date "2020.03.03"]
[Round "2"]
[White "DenishevM"]
[Black "GMKrikor"]
[Result "0-1"]
[WhiteElo "2597"]
[BlackElo "2851"]
[TimeControl "180+1"]
[EndTime "9:18:59 PST"]
[Termination "GMKrikor won on time"]

1. d4 {[%clk 0:03:00.8]} 1... Nf6 {[%clk 0:02:53.9]} 2. c4 {[%clk 0:03:00.6]}
2... e6 {[%clk 0:02:53.4]} 3. g3 {[%clk 0:03:00.5]} 3... d5 {[%clk 0:02:48.4]}
4. Nf3 {[%clk 0:02:59.4]} 4... h6 {[%clk 0:02:48.7]} 5. Bg2 {[%clk 0:02:56]}
5... Bd6 {[%clk 0:02:49.1]} 6. O-O {[%clk 0:02:53.7]} 6... O-O {[%clk
0:02:48.8]} 7. Qc2 {[%clk 0:02:50.3]} 7... b6 {[%clk 0:02:48.7]} 8. cxd5 {[%clk
0:02:46.9]} 8... exd5 {[%clk 0:02:49.6]} 9. Nc3 {[%clk 0:02:46.7]} 9... Bb7
{[%clk 0:02:48.9]} 10. Bf4 {[%clk 0:02:47]} 10... Bxf4 {[%clk 0:02:45.8]} 11.
gxf4 {[%clk 0:02:47.9]} 11... Nc6 {[%clk 0:02:46.7]} 12. e3 {[%clk 0:02:47.8]}
12... Ne7 {[%clk 0:02:46.3]} 13. Ne5 {[%clk 0:02:46.3]} 13... c5 {[%clk
0:02:43.9]} 14. Rad1 {[%clk 0:02:41.5]} 14... Rc8 {[%clk 0:02:38.1]} 15. Qa4
{[%clk 0:02:22.3]} 15... a6 {[%clk 0:02:34.4]} 16. Qb3 {[%clk 0:02:00.9]} 16...
c4 {[%clk 0:01:58.1]} 17. Qc2 {[%clk 0:01:54]} 17... b5 {[%clk 0:01:57.5]} 18.
a3 {[%clk 0:01:51.2]} 18... Qb6 {[%clk 0:01:54]} 19. Kh1 {[%clk 0:01:47.2]}
19... a5 {[%clk 0:01:53.2]} 20. Rg1 {[%clk 0:01:45.9]} 20... b4 {[%clk
0:01:26.6]} 21. Na4 {[%clk 0:01:44.2]} 21... Qd6 {[%clk 0:01:26.7]} 22. Nc5
{[%clk 0:01:39.9]} 22... Rxc5 {[%clk 0:01:26.8]} 23. dxc5 {[%clk 0:01:40.7]}
23... Qxc5 {[%clk 0:01:27.7]} 24. axb4 {[%clk 0:01:31.8]} 24... axb4 {[%clk
0:01:28.6]} 25. Qe2 {[%clk 0:01:03.3]} 25... Qb6 {[%clk 0:01:24]} 26. Bf3 {[%clk
0:00:44.8]} 26... Nf5 {[%clk 0:01:24.4]} 27. Ng4 {[%clk 0:00:39.2]} 27... Re8
{[%clk 0:00:56.7]} 28. h3 {[%clk 0:00:33.5]} 28... Nh4 {[%clk 0:00:49.7]} 29.
Nxf6+ {[%clk 0:00:24.7]} 29... Qxf6 {[%clk 0:00:50.6]} 30. Kh2 {[%clk
0:00:14.9]} 30... Qe7 {[%clk 0:00:33.7]} 31. Bxd5 {[%clk 0:00:08.3]} 31... Bxd5
{[%clk 0:00:33.6]} 32. Rxd5 {[%clk 0:00:07.9]} 32... Qe4 {[%clk 0:00:34.2]} 33.
Re5 {[%clk 0:00:02.9]} 33... Rxe5 {[%clk 0:00:31.9]} 34. fxe5 {[%clk 0:00:03.1]}
34... Nf3+ {[%clk 0:00:32.6]} 35. Kg2 {[%clk 0:00:02.3]} 35... Nd4+ {[%clk
0:00:26.4]} 36. f3 {[%clk 0:00:02.5]} 36... Nxe2 {[%clk 0:00:21.5]} 37. fxe4
{[%clk 0:00:02.1]} 37... Nxg1 {[%clk 0:00:22]} 0-1

[Event "*** Titled Tuesday Blitz"]
[Site "Chess.com"]
[Date "2020.03.03"]
[Round "2"]
[White "Eloist"]
[Black "ShahMatKanal"]
[Result "0-1"]
[WhiteElo "2242"]
[BlackElo "2513"]
[TimeControl "180+1"]
[EndTime "9:19:00 PST"]
[Termination "ShahMatKanal won on time"]

1. e4 {[%clk 0:03:00.9]} 1... c5 {[%clk 0:02:59.9]} 2. Nf3 {[%clk 0:03:00.1]}
2... Nc6 {[%clk 0:03:00.1]} 3. Bb5 {[%clk 0:02:59.8]} 3... g6 {[%clk 0:02:59.9]}
4. Bxc6 {[%clk 0:02:59.6]} 4... dxc6 {[%clk 0:03:00.8]} 5. d3 {[%clk 0:02:59.1]}
5... Bg7 {[%clk 0:03:01.3]} 6. h3 {[%clk 0:02:59.1]} 6... e5 {[%clk 0:03:01.2]}
7. Nc3 {[%clk 0:02:57.2]} 7... Qe7 {[%clk 0:03:00.5]} 8. Be3 {[%clk 0:02:56.9]}
8... Nf6 {[%clk 0:03:00.6]} 9. Qd2 {[%clk 0:02:56.1]} 9... h6 {[%clk 0:03:01]}
10. O-O {[%clk 0:02:53.5]} 10... Nd7 {[%clk 0:03:01.1]} 11. Nh2 {[%clk
0:02:51.3]} 11... Nf8 {[%clk 0:03:01.2]} 12. f4 {[%clk 0:02:51.2]} 12... exf4
{[%clk 0:03:02.1]} 13. Bxf4 {[%clk 0:02:51.1]} 13... Ne6 {[%clk 0:03:03]} 14.
Bg3 {[%clk 0:02:51]} 14... Nd4 {[%clk 0:03:00.2]} 15. Rf2 {[%clk 0:02:43.8]}
15... Be6 {[%clk 0:02:58.1]} 16. Raf1 {[%clk 0:02:41]} 16... O-O-O {[%clk
0:02:29]} 17. Qf4 {[%clk 0:02:34.7]} 17... Kd7 {[%clk 0:02:04.4]} 18. Ng4 {[%clk
0:02:19.8]} 18... g5 {[%clk 0:01:44.9]} 19. Ne5+ {[%clk 0:01:33.4]} 19... Bxe5
{[%clk 0:01:44]} 20. Qxe5 {[%clk 0:01:33.1]} 20... Rhg8 {[%clk 0:01:39]} 21. b4
{[%clk 0:00:47.1]} 21... b6 {[%clk 0:01:31.4]} 22. bxc5 {[%clk 0:00:45.4]} 22...
Qxc5 {[%clk 0:01:31.4]} 23. Qc7+ {[%clk 0:00:41.7]} 23... Ke8 {[%clk 0:01:31.3]}
24. Kh2 {[%clk 0:00:24.8]} 24... Qe7 {[%clk 0:01:29.5]} 25. Qe5 {[%clk
0:00:17.5]} 25... Rg6 {[%clk 0:01:24.1]} 26. Qh8+ {[%clk 0:00:16.1]} 26... Kd7
{[%clk 0:01:24.3]} 27. Qe5 {[%clk 0:00:15.9]} 27... h5 {[%clk 0:01:21.1]} 28.
Qxd4+ {[%clk 0:00:15.5]} 28... Ke8 {[%clk 0:01:21.3]} 29. Qh8+ {[%clk
0:00:15.3]} 29... Kd7 {[%clk 0:01:21.3]} 30. Qe5 {[%clk 0:00:14.8]} 30... Ke8
{[%clk 0:01:18.6]} 31. Qh8+ {[%clk 0:00:14.2]} 31... Kd7 {[%clk 0:01:18.8]} 32.
Qe5 {[%clk 0:00:14]} 32... Ke8 {[%clk 0:01:18.8]} 33. Qc7 {[%clk 0:00:13.6]}
33... Rd7 {[%clk 0:00:59.4]} 34. Qxc6 {[%clk 0:00:12.8]} 34... h4 {[%clk
0:00:59.9]} 35. Be5 {[%clk 0:00:11.7]} 35... g4 {[%clk 0:01:00.1]} 36. hxg4
{[%clk 0:00:09.3]} 36... Bxg4 {[%clk 0:01:01]} 37. Qc8+ {[%clk 0:00:07.8]} 37...
Rd8 {[%clk 0:01:00.8]} 38. Qc6+ {[%clk 0:00:07.4]} 38... Bd7 {[%clk 0:01:01]}
39. Qc7 {[%clk 0:00:05.4]} 39... Rc8 {[%clk 0:00:57.6]} 40. Qb7 {[%clk 0:00:04]}
40... Qxe5+ {[%clk 0:00:57]} 41. Kh1 {[%clk 0:00:03.9]} 41... h3 {[%clk
0:00:55.8]} 42. g4 {[%clk 0:00:02.8]} 42... Qc7 {[%clk 0:00:27.9]} 43. Qxc7
{[%clk 0:00:02.2]} 43... Rxc7 {[%clk 0:00:28.8]} 44. Nd5 {[%clk 0:00:02.6]}
44... Rcc6 {[%clk 0:00:26.5]} 45. c4 {[%clk 0:00:02.5]} 45... b5 {[%clk
0:00:23]} 0-1

[Event "*** Titled Tuesday Blitz"]
[Site "Chess.com"]
[Date "2020.03.03"]
[Round "2"]
[White "AndreyNeves"]
[Black "Alopekos"]
[Result "1/2-1/2"]
[WhiteElo "2176"]
[BlackElo "2470"]
[TimeControl "180+1"]
[EndTime "9:19:03 PST"]
[Termination "Game drawn by repetition"]

1. d4 {[%clk 0:03:00.9]} 1... c5 {[%clk 0:02:59.1]} 2. d5 {[%clk 0:03:00.3]}
2... Nf6 {[%clk 0:02:58.3]} 3. Nc3 {[%clk 0:02:59.4]} 3... d6 {[%clk 0:02:46.8]}
4. e4 {[%clk 0:02:59.2]} 4... g6 {[%clk 0:02:46.4]} 5. Nf3 {[%clk 0:02:56.4]}
5... Bg7 {[%clk 0:02:46.1]} 6. Be2 {[%clk 0:02:48.3]} 6... O-O {[%clk
0:02:45.2]} 7. Nd2 {[%clk 0:02:47.5]} 7... Na6 {[%clk 0:02:38.7]} 8. O-O {[%clk
0:02:42.2]} 8... Nc7 {[%clk 0:02:37.3]} 9. a4 {[%clk 0:02:40.9]} 9... a6 {[%clk
0:02:33.2]} 10. Nc4 {[%clk 0:02:38.9]} 10... Rb8 {[%clk 0:02:25.7]} 11. Nb6
{[%clk 0:02:30.3]} 11... Na8 {[%clk 0:02:23.1]} 12. Nc4 {[%clk 0:02:23.3]} 12...
Nc7 {[%clk 0:02:20.7]} 13. Nb6 {[%clk 0:02:00.5]} 13... Na8 {[%clk 0:02:14.2]}
14. Nxc8 {[%clk 0:02:00.5]} 14... Qxc8 {[%clk 0:02:11.9]} 15. a5 {[%clk
0:01:58.8]} 15... b5 {[%clk 0:02:08.4]} 16. axb6 {[%clk 0:01:57.4]} 16... Rxb6
{[%clk 0:02:08.4]} 17. Ra2 {[%clk 0:01:43.6]} 17... Nc7 {[%clk 0:02:04.6]} 18.
Bf4 {[%clk 0:01:37.1]} 18... Nb5 {[%clk 0:01:58.8]} 19. Nxb5 {[%clk 0:01:22.7]}
19... axb5 {[%clk 0:01:59.7]} 20. e5 {[%clk 0:01:22.9]} 20... dxe5 {[%clk
0:01:15.9]} 21. Bxe5 {[%clk 0:01:18]} 21... Qf5 {[%clk 0:01:15.6]} 22. f4 {[%clk
0:01:07.7]} 22... Rd8 {[%clk 0:01:06.8]} 23. Bf3 {[%clk 0:00:59]} 23... Rb7
{[%clk 0:00:57.4]} 24. b3 {[%clk 0:00:35.8]} 24... c4 {[%clk 0:00:39]} 25. bxc4
{[%clk 0:00:31.2]} 25... bxc4 {[%clk 0:00:38.5]} 26. Qd4 {[%clk 0:00:24.2]}
26... Rbd7 {[%clk 0:00:24.2]} 27. Qxc4 {[%clk 0:00:23.9]} 27... Nxd5 {[%clk
0:00:21.1]} 28. Bxd5 {[%clk 0:00:18.3]} 28... Rxd5 {[%clk 0:00:21.4]} 29. Bxg7
{[%clk 0:00:10.3]} 29... Kxg7 {[%clk 0:00:20.8]} 30. h3 {[%clk 0:00:08.9]} 30...
Rc5 {[%clk 0:00:17.9]} 31. Qb4 {[%clk 0:00:07.7]} 31... Rxc2 {[%clk 0:00:15.6]}
32. Rxc2 {[%clk 0:00:08.6]} 32... Qxc2 {[%clk 0:00:15.8]} 33. Qxe7 {[%clk
0:00:08.7]} 33... Rd2 {[%clk 0:00:14.7]} 34. Qe5+ {[%clk 0:00:08.7]} 34... Kh6
{[%clk 0:00:14.8]} 35. Qg5+ {[%clk 0:00:07.7]} 35... Kg7 {[%clk 0:00:13.6]} 36.
Qe5+ {[%clk 0:00:08.6]} 36... f6 {[%clk 0:00:13.8]} 37. Qe7+ {[%clk 0:00:08.4]}
37... Kg8 {[%clk 0:00:13.6]} 38. Qe8+ {[%clk 0:00:07.9]} 38... Kg7 {[%clk
0:00:13.5]} 39. Qe7+ {[%clk 0:00:08.1]} 39... Kg8 {[%clk 0:00:13.4]} 40. Qe8+
{[%clk 0:00:08.1]} 40... Kg7 {[%clk 0:00:13.5]} 41. Qe7+ {[%clk 0:00:08.1]}
1/2-1/2

[Event "*** Titled Tuesday Blitz"]
[Site "Chess.com"]
[Date "2020.03.03"]
[Round "2"]
[White "Ginger_GM"]
[Black "David_Paravyan"]
[Result "0-1"]
[WhiteElo "2584"]
[BlackElo "2832"]
[TimeControl "180+1"]
[EndTime "9:19:05 PST"]
[Termination "David_Paravyan won by resignation"]

1. d4 {[%clk 0:02:59.2]} 1... Nf6 {[%clk 0:02:54.2]} 2. Nf3 {[%clk 0:02:57.3]}
2... g6 {[%clk 0:02:52.5]} 3. h4 {[%clk 0:02:54.8]} 3... Bg7 {[%clk 0:02:48.5]}
4. Bf4 {[%clk 0:02:48.6]} 4... c5 {[%clk 0:02:26.9]} 5. d5 {[%clk 0:02:38.9]}
5... Qb6 {[%clk 0:02:14.4]} 6. d6 {[%clk 0:01:44]} 6... Nc6 {[%clk 0:01:53.6]}
7. Nbd2 {[%clk 0:01:22.6]} 7... Nd5 {[%clk 0:01:48.3]} 8. e3 {[%clk 0:00:54.7]}
8... Bxb2 {[%clk 0:01:25]} 9. Nc4 {[%clk 0:00:50.9]} 9... Qb4+ {[%clk
0:01:22.8]} 10. Nfd2 {[%clk 0:00:29.3]} 10... Bxa1 {[%clk 0:00:40.7]} 11. Qxa1
{[%clk 0:00:24.6]} 11... Qc3 {[%clk 0:00:41.1]} 12. Qxc3 {[%clk 0:00:16.9]}
12... Nxc3 {[%clk 0:00:42]} 13. dxe7 {[%clk 0:00:17.2]} 13... d5 {[%clk
0:00:35.6]} 14. Nd6+ {[%clk 0:00:11.3]} 14... Kxe7 {[%clk 0:00:35.5]} 15. h5
{[%clk 0:00:10.8]} 15... Nb4 {[%clk 0:00:27.5]} 16. f3 {[%clk 0:00:07.6]} 16...
Be6 {[%clk 0:00:23]} 17. Kf2 {[%clk 0:00:06.6]} 17... g5 {[%clk 0:00:21.7]} 18.
Bg3 {[%clk 0:00:05.7]} 18... Nd1+ {[%clk 0:00:21.1]} 19. Kg1 {[%clk 0:00:04]}
19... Nxe3 {[%clk 0:00:20.9]} 20. Nxb7 {[%clk 0:00:04.1]} 20... Nf5 {[%clk
0:00:16.8]} 21. Be5 {[%clk 0:00:03.4]} 21... f6 {[%clk 0:00:16.6]} 22. Bb2
{[%clk 0:00:03.9]} 22... Rhc8 {[%clk 0:00:15.2]} 23. a3 {[%clk 0:00:03.4]} 23...
Nxc2 {[%clk 0:00:15.1]} 24. Bd3 {[%clk 0:00:03.9]} 24... Ncd4 {[%clk 0:00:14.5]}
25. Bxd4 {[%clk 0:00:03.4]} 25... cxd4 {[%clk 0:00:11.6]} 26. Kf2 {[%clk
0:00:03.9]} 26... Rab8 {[%clk 0:00:11.6]} 27. Na5 {[%clk 0:00:04.2]} 27... Rb2
{[%clk 0:00:11.2]} 28. Rd1 {[%clk 0:00:02.8]} 28... Ne3 {[%clk 0:00:10]} 29. Ke2
{[%clk 0:00:03.3]} 29... Nxd1 {[%clk 0:00:09.8]} 30. Kxd1 {[%clk 0:00:04.2]}
30... Bd7 {[%clk 0:00:10.1]} 31. Bxh7 {[%clk 0:00:03.9]} 31... Ba4+ {[%clk
0:00:10.1]} 32. Ke2 {[%clk 0:00:04.7]} 32... Rc5 {[%clk 0:00:09.2]} 33. Nb7
{[%clk 0:00:04]} 33... Rxb7 {[%clk 0:00:08.4]} 34. h6 {[%clk 0:00:04.9]} 34...
Rb8 {[%clk 0:00:08.7]} 35. Bd3 {[%clk 0:00:05.8]} 35... Rh8 {[%clk 0:00:09.1]}
36. h7 {[%clk 0:00:06.7]} 36... Bb5 {[%clk 0:00:09.8]} 37. Nf1 {[%clk
0:00:06.3]} 37... Bxd3+ {[%clk 0:00:09.7]} 38. Kxd3 {[%clk 0:00:07.2]} 38...
Rxh7 {[%clk 0:00:10.3]} 0-1

[Event "*** Titled Tuesday Blitz"]
[Site "Chess.com"]
[Date "2020.03.03"]
[Round "2"]
[White "Grandelicious"]
[Black "JussupowFan"]
[Result "1-0"]
[WhiteElo "2681"]
[BlackElo "2339"]
[TimeControl "180+1"]
[EndTime "9:19:10 PST"]
[Termination "Grandelicious won by checkmate"]

1. Nf3 {[%clk 0:03:00.9]} 1... Nf6 {[%clk 0:02:58]} 2. g3 {[%clk 0:03:00.9]}
2... c5 {[%clk 0:02:57.3]} 3. Bg2 {[%clk 0:03:00.1]} 3... d5 {[%clk 0:02:57.6]}
4. O-O {[%clk 0:02:56]} 4... Nc6 {[%clk 0:02:56.7]} 5. d4 {[%clk 0:02:56.1]}
5... e6 {[%clk 0:02:51.6]} 6. c4 {[%clk 0:02:55.8]} 6... dxc4 {[%clk 0:02:50.6]}
7. Na3 {[%clk 0:02:48.7]} 7... cxd4 {[%clk 0:02:46.6]} 8. Nxc4 {[%clk
0:02:48.1]} 8... Bc5 {[%clk 0:02:45.6]} 9. a3 {[%clk 0:02:45.3]} 9... a5 {[%clk
0:02:37.7]} 10. Bg5 {[%clk 0:02:43.9]} 10... O-O {[%clk 0:02:36.7]} 11. Rc1
{[%clk 0:02:43.5]} 11... h6 {[%clk 0:02:33.4]} 12. Bxf6 {[%clk 0:02:30.5]} 12...
Qxf6 {[%clk 0:02:34.3]} 13. Qb3 {[%clk 0:02:28.8]} 13... Ba7 {[%clk 0:02:17.7]}
14. Nd6 {[%clk 0:01:57.2]} 14... Rb8 {[%clk 0:02:04.7]} 15. Nd2 {[%clk
0:01:32.8]} 15... Bd7 {[%clk 0:01:53.7]} 16. Nb5 {[%clk 0:01:09.3]} 16... Bb6
{[%clk 0:01:17.2]} 17. Nc4 {[%clk 0:01:05.2]} 17... Bd8 {[%clk 0:01:17.1]} 18.
Qd3 {[%clk 0:00:52.5]} 18... e5 {[%clk 0:01:10.4]} 19. Ncd6 {[%clk 0:00:47]}
19... Be7 {[%clk 0:01:05.6]} 20. Ne4 {[%clk 0:00:43.4]} 20... Qg6 {[%clk
0:01:05.2]} 21. Nc5 {[%clk 0:00:29]} 21... Bf5 {[%clk 0:00:59.5]} 22. Qb3 {[%clk
0:00:25]} 22... Bxc5 {[%clk 0:00:54.2]} 23. Rxc5 {[%clk 0:00:25.9]} 23... Be4
{[%clk 0:00:54.1]} 24. Rfc1 {[%clk 0:00:18.9]} 24... Bxg2 {[%clk 0:00:38.6]} 25.
Kxg2 {[%clk 0:00:19.8]} 25... Qe4+ {[%clk 0:00:38.5]} 26. Qf3 {[%clk 0:00:20.3]}
26... f5 {[%clk 0:00:38.2]} 27. Qxe4 {[%clk 0:00:19.5]} 27... fxe4 {[%clk
0:00:39.1]} 28. Nd6 {[%clk 0:00:20]} 28... e3 {[%clk 0:00:36]} 29. fxe3 {[%clk
0:00:20.9]} 29... dxe3 {[%clk 0:00:36.8]} 30. R1c3 {[%clk 0:00:18.3]} 30... Rf2+
{[%clk 0:00:35.2]} 31. Kh3 {[%clk 0:00:17.4]} 31... Rxe2 {[%clk 0:00:31.5]} 32.
Nf5 {[%clk 0:00:17.3]} 32... Rd8 {[%clk 0:00:27.6]} 33. Rxe3 {[%clk 0:00:13.9]}
33... Rf2 {[%clk 0:00:23.2]} 34. Nh4 {[%clk 0:00:08.9]} 34... Rdd2 {[%clk
0:00:18.3]} 35. b4 {[%clk 0:00:08.6]} 35... h5 {[%clk 0:00:11.6]} 36. Nf3 {[%clk
0:00:08.9]} 36... Ra2 {[%clk 0:00:07.4]} 37. b5 {[%clk 0:00:08.6]} 37... e4
{[%clk 0:00:07.7]} 38. Rxe4 {[%clk 0:00:06.9]} 38... Rxf3 {[%clk 0:00:02.3]} 39.
bxc6 {[%clk 0:00:07.4]} 39... Rff2 {[%clk 0:00:01.8]} 40. Kh4 {[%clk 0:00:06.9]}
40... Rxh2+ {[%clk 0:00:02.2]} 41. Kg5 {[%clk 0:00:07.5]} 41... Rag2 {[%clk
0:00:02.6]} 42. Re3 {[%clk 0:00:06.5]} 42... bxc6 {[%clk 0:00:03.5]} 43. Kg6
{[%clk 0:00:06]} 43... h4 {[%clk 0:00:02.4]} 44. Re8# {[%clk 0:00:05.6]} 1-0